[Event "Bangabandhu Premier Div League 2022"]
[Site "Dhaka"]
[Date "2022.12.02"]
[Round "3.10"]
[White "Aradhya, Garg"]
[Black "Pantsulaia, Levan"]
[Result "0-1"]
[ECO "E70"]
[WhiteElo "2289"]
[BlackElo "2597"]
[Annotator "TA"]
[PlyCount "114"]
[EventDate "2022.11.30"]
[EventType "team-tourn"]
[EventCountry "BAN"]
[SourceTitle "playchess.com"]
[Source "ChessBase"]
[SourceQuality "1"]
[TimeControl "40/5400+30:1800+30"]

{[%evp 10,114,62,60,55,0,0,-20,-20,-1,20,12,13,8,16,-20,-8,-54,0,-66,-31,-59,-58,-72,-60,-91,-46,-41,-40,-44,-44,-37,-37,-38,-23,-34,43,29,48,0,4,-14,-18,-89,-61,-103,-119,-124,-56,-52,-56,-63,-64,-75,-41,-100,-14,-3,-27,-18,-23,-93,-104,-88,-72,-172,-181,-182,-174,-242,-231,-217,-236,-267,-245,-1646,-1579,-1170,-1748,-1647,-1618,-1474,-1370,-1035,-995,-1798,-29978,-2228,-1053,-29979,-29980,-29980,-29981,-29981,-29982,-29982,-29983,-29983,-29984,-29984,-29985,-29988,-29989,-29992,-29990,-29990,-29991]} 1. d4 {[%emt 0:00:02]} Nf6 {[%emt 0:00:06]} 2. c4 {[%emt 0:00:04]} c5 {[%emt 0:00:04]} 3. d5 {[%emt 0:00:03]} g6 {[%emt 0:00:06]} 4. Nc3 {[%emt 0:00:16]} Bg7 {[%emt 0:00:06]} 5. e4 {[%emt 0:01:14]} O-O {[%emt 0:00:07]} 6. Nf3 {[%emt 0:02:23]} e6 {[%emt 0:00:08] E70: King's Indian: Miscellaneous lines with 4 e4, including 5 Nge2 and 5 Bd3 0-0 6 Nge2.} 7. e5 {[%emt 0:16:42]} (7. Bd3 $14) 7... Ng4 $11 {[%emt 0:08:09]} 8. Bf4 {[%emt 0:00:04] [#] h3 is the strong threat.} d6 $146 {[%emt 0:05:34] The position is equal.} ({Predecessor:} 8... exd5 9. Qxd5 Nc6 10. Qxc5 Ncxe5 11. Nxe5 Nxe5 12. O-O-O Re8 13. Qd5 Qf6 14. Bg3 Nc6 {1-0 (40) Van der Vliet,F (2330)-Booij,J (2290) Netherlands 1995}) 9. exd6 {[%emt 0:02:38]} e5 {[%emt 0:03:32]} 10. Bg5 {[%emt 0:02:16]} f6 {[%emt 0:10:25]} 11. Bh4 {[%emt 0:01:56]} Qxd6 {[%emt 0:02:52][%cal Oe5e4]} 12. Be2 {[%emt 0:00:51]} (12. h3 $5 Nh6 $8 13. Bd3 $11) 12... Nh6 {[%emt 0:12:22]} 13. Nb5 {[%emt 0:04:22]} (13. Qd2 $1 $11) 13... Qd7 {[%emt 0:00:20]} (13... Qb6 $15) 14. d6 {[%emt 0:00:56]} (14. Nd2 $11) 14... Na6 {[%emt 0:05:09]} 15. Qd5+ {[%emt 0:14:38]} Qf7 {[%emt 0:01:04]} 16. Qxf7+ {[%emt 0:00:59]} Rxf7 {[%emt 0:02:16]} 17. O-O-O Nf5 {[%emt 0:11:39] White must now prevent ...e4.} 18. g4 {[%emt 0:05:01] Against e4} Nxh4 {[%emt 0:00:08]} 19. Nxh4 {[%emt 0:00:02]} Be6 {[%emt 0:00:50]} (19... Nb4 {is more complex.} 20. Kb1 Bd7 21. Bf3 Rd8) 20. Kb1 {[%emt 0:01:12]} Rd7 {[%emt 0:04:54]} 21. Ng2 {[%emt 0:05:35]} Rad8 {[%emt 0:04:22]} 22. Ne3 {[%emt 0:01:46]} b6 {[%emt 0:05:24]} (22... Nb4 $15) 23. Bf3 $14 {[%emt 0:01:33]} Nb8 $1 {[%emt 0:00:06]} 24. Nd5 {[%emt 0:02:13]} Kf8 {[%emt 0:07:30]} 25. a4 {[%emt 0:10:35]} (25. b3 {simplifies} f5 26. Rhg1 fxg4 27. Bxg4 Bxg4 28. Rxg4 Nc6 29. Ndc7) 25... f5 {[%emt 0:01:28]} 26. gxf5 {[%emt 0:10:49]} (26. Ndc7 $11 {keeps the balance.} Bf7 27. Bd5 (27. Nxa7 e4 $17)) 26... Bxf5+ $17 {[%emt 0:00:05]} 27. Ka2 {[%emt 0:00:06]} Nc6 {[%emt 0:00:49]} 28. Rhe1 {[%emt 0:08:10]} Nd4 {[%emt 0:04:33]} (28... a6 $17 29. Nbc7 (29. Nxb6 $2 Nb4+ 30. Ka3 Nc2+ 31. Ka2 axb5 $19) 29... Rxd6) 29. Be4 $15 {[%emt 0:00:16]} Be6 {[%emt 0:05:07]} (29... Bxe4 {simplifies} 30. Rxe4 Nxb5 31. axb5 Rxd6 32. f4 exf4 33. Rxf4+ Kg8) 30. Rd3 {[%emt 0:02:23]} Rf7 {[%emt 0:00:28]} 31. f3 {[%emt 0:02:35]} Bh6 {[%emt 0:03:27]} 32. b3 {[%emt 0:01:10]} ({Better is} 32. Rh1 $15) 32... a6 {[%emt 0:01:13]} (32... Bxd5 $1 $17 33. Bxd5 Nc2) 33. Nxd4 $11 {[%emt 0:01:16]} exd4 {[%emt 0:00:05]} 34. Nxb6 {[%emt 0:02:26][%cal Ob3b4]} Rxd6 {[%emt 0:00:01]} 35. Nd5 {[%emt 0:00:01]} (35. a5 $1 $11 {remains equal.}) 35... a5 $1 $17 {[%emt 0:00:24]} 36. h4 {[%emt 0:00:01][%cal Oh4h5]} Bf4 {[%emt 0:01:32] Prevents h5.} 37. h5 {[%emt 0:00:26]} (37. Kb1 $17 {is a better defense.}) 37... Bxd5 $1 $19 {[%emt 0:00:55]} (37... gxh5 38. Nxf4 Rxf4 39. Rg1 $17) 38. Bxd5 {[%emt 0:00:06]} Re7 {[%emt 0:00:04]} 39. Re4 {[%emt 0:01:05]} (39. Be4 $142) 39... Rxe4 {[%emt 0:00:22]} 40. fxe4 {[%emt 0:00:02][%mdl 4096] Endgame [#] KRB-KRB} g5 {[%emt 0:00:45]} ({Weaker is} 40... gxh5 41. b4 axb4 42. a5) 41. Kb2 {[%emt 0:07:52]} Rf6 {[%emt 0:06:47] Inhibits e5. Strongly threatening ...Be5.} 42. Rh3 $2 {[%emt 0:01:36]} (42. e5 Bxe5 43. Kc2) 42... Be5 {[%emt 0:03:15]} 43. h6 {[%emt 0:00:09]} g4 {[%emt 0:00:31]} 44. Rh5 {[%emt 0:00:13] [#]} g3 $1 {[%emt 0:00:13]} 45. Rxe5 {[%emt 0:03:22] KRB-KR} g2 {[%emt 0:00:07]} (45... Rxh6 $2 46. Rg5 $18) 46. Rg5 {[%emt 0:00:02] [#]} Rg6 $1 {[%emt 0:00:06]} 47. Rf5+ {[%emt 0:00:05]} Ke7 {[%emt 0:00:06]} 48. Rf7+ {[%emt 0:00:13]} Ke8 {[%emt 0:00:05]} (48... Kd8 $142 49. Rf8+ Kc7 50. Rf7+ Kb8 51. Rf8+ Ka7 52. Rf7+ Ka6 53. Bb7+ Kb6) 49. Rg7 {[%emt 0:01:01]} g1=Q {[%emt 0:00:34] Black mates.} (49... g1=R $2 50. Bf7+ (50. Rxh7 $2 {leads to mate.} R6g2+ 51. Ka3 Ra1#) 50... Kf8 51. Bxg6 (51. Rxh7 $2 {is a self mate.} R6g2+ 52. Ka3 Ra1#) 51... hxg6 52. Rc7 $18) 50. Bf7+ {[%emt 0:00:03]} Kf8 {[%emt 0:00:12]} 51. Bxg6 {[%emt 0:00:04]} hxg6 {[%emt 0:00:42] KQ-KR} 52. Ra7 {[%emt 0:00:10]} Qh2+ {[%emt 0:00:22]} 53. Kb1 {[%emt 0:00:07]} Qxh6 {[%emt 0:00:11]} 54. Rxa5 {[%emt 0:00:06]} Qe3 {[%emt 0:00:21]} 55. Rb5 {[%emt 0:00:18]} d3 {[%emt 0:00:09][%cal Bd4d3,Bd3d2][%mdl 32]} 56. a5 {[%emt 0:00:05]} Qe1+ {[%emt 0:00:13]} 57. Kb2 {[%emt 0:00:03]} d2 {[%emt 0:00:05] Weighted Error Value: White=0.49/Black=0.24 (precise)} 0-1

[Event "Bangabandhu Premier Div League 2022"]
[Site "Dhaka"]
[Date "2022.12.02"]
[Round "3.11"]
[White "Rakhmanov, Aleksandr"]
[Black "Sankalan Shah"]
[Result "1-0"]
[ECO "E06"]
[WhiteElo "2630"]
[BlackElo "2218"]
[Annotator "TA"]
[PlyCount "101"]
[EventDate "2022.11.30"]
[EventType "team-tourn"]
[EventCountry "BAN"]
[SourceTitle "playchess.com"]
[Source "ChessBase"]
[SourceQuality "1"]
[TimeControl "40/5400+30:1800+30"]

{[%evp 21,101,14,20,14,14,12,15,12,17,16,11,15,8,10,27,22,29,26,73,47,47,47,47,47,47,47,47,47,47,48,47,47,51,51,51,51,45,32,38,39,49,32,33,32,44,33,71,66,65,66,65,72,71,26,79,79,79,79,106,109,170,173,173,172,169,151,165,161,165,164,164,164,191,183,180,168,170,165,164,164,164,164]} 1. d4 {[%emt 0:00:12]} Nf6 {[%emt 0:00:27]} 2. Nf3 {[%emt 0:01:12]} e6 {[%emt 0:00:17]} 3. g3 {[%emt 0:01:26]} d5 {[%emt 0:00:08]} 4. Bg2 {[%emt 0:00:05]} Be7 {[%emt 0:00:04]} 5. c4 {[%emt 0:00:04]} O-O {[%emt 0:00:06]} 6. Nc3 {[%emt 0:00:02]} dxc4 {[%emt 0:01:10]} 7. Ne5 {[%emt 0:00:09]} Nc6 {[%emt 0:00:45]} 8. Bxc6 {[%emt 0:00:30]} bxc6 {[%emt 0:00:04]} 9. Nxc6 {[%emt 0:00:05]} Qe8 {[%emt 0:00:05]} 10. Nxe7+ {[%emt 0:00:08]} Qxe7 {[%emt 0:00:02]} 11. Qa4 {[%emt 0:00:10]} c5 {[%emt 0:01:23]} 12. dxc5 {[%emt 0:01:05] E06: Closed Catalan: Early deviations.} Qxc5 {[%emt 0:00:09]} 13. Be3 {[%emt 0:02:06][%cal Bc1e3,Be3d4,Bd4c3,Bc3a5][%mdl 32]} Qc7 {[%emt 0:00:42]} 14. Rd1 {[%emt 0:02:07] The position is equal.} Bb7 {[%emt 0:12:56]} 15. O-O {[%emt 0:01:49]} Nd5 {[%emt 0:08:07]} 16. Bd4 {[%emt 0:06:54]} Rfd8 {[%emt 0:15:16] [#]} 17. Rfe1 $146 {[%emt 0:11:20]} ({Predecessor:} 17. Nxd5 Rxd5 18. Bc3 a5 19. Rxd5 exd5 20. Rd1 f6 21. Rd4 Qc6 22. Qxc6 Bxc6 23. f3 {½-½ (59) Sarana,A (2685)-Caruana,F (2781) Chess.com INT 2022}) 17... e5 {[%emt 0:25:58]} 18. Nxd5 {[%emt 0:01:01]} Bxd5 {[%emt 0:00:02]} 19. Bc3 {[%emt 0:00:50]} Qc5 {[%emt 0:05:09] Against Ba5} (19... Be6 $11 {feels stronger.}) 20. Qa5 (20. Bxe5 {feels hotter.} Bc6 21. Rxd8+ Rxd8 22. Qa6) 20... Qxa5 {[%emt 0:02:31]} 21. Bxa5 {[%emt 0:08:45]} Rd7 {[%emt 0:00:22]} 22. Rd2 {[%emt 0:00:32] [#] Black must now prevent Red1.} Be6 {[%emt 0:00:37]} 23. Rxd7 {[%emt 0:02:30]} Bxd7 $14 {[%emt 0:00:02][%mdl 4096] Endgame KRB-KRB} 24. Rd1 {[%emt 0:00:13]} Ba4 {[%emt 0:09:11]} 25. Rd5 {[%emt 0:01:09]} f6 {[%emt 0:00:28]} 26. Rc5 {[%emt 0:02:05]} Rb8 {[%emt 0:00:51]} 27. Bc3 {[%emt 0:00:18]} Bb5 {[%emt 0:00:39]} 28. g4 {[%emt 0:01:48]} a6 {[%emt 0:03:39]} 29. g5 {[%emt 0:02:45]} Rb7 {[%emt 0:01:16]} 30. gxf6 {[%emt 0:05:06]} gxf6 {[%emt 0:00:08]} 31. f3 {[%emt 0:01:25]} Kf7 {[%emt 0:01:54]} 32. Kf2 {[%emt 0:02:00]} Ke6 {[%emt 0:01:01]} 33. Rc8 {[%emt 0:00:33]} Rd7 {[%emt 0:06:30]} 34. Rb8 {[%emt 0:01:19]} Rd6 {[%emt 0:02:53]} 35. Bb4 {[%emt 0:00:43]} Rd7 {[%emt 0:00:05]} 36. Rb6+ {[%emt 0:00:26]} Kf7 {[%emt 0:00:26]} 37. a3 {[%emt 0:14:30][%cal Of3f4] White is more active.} Kg7 {[%emt 0:01:11]} (37... Rc7 $11 {keeps the balance.}) 38. Bc3 $16 {[%emt 0:02:24]} Kf7 {[%emt 0:00:54]} 39. f4 {[%emt 0:02:54]} Rd5 {[%emt 0:00:35]} 40. e4 {[%emt 0:03:35]} Rc5 {[%emt 0:01:39]} (40... Rd8 $16) 41. Rb7+ $18 {[%emt 0:32:27] White is clearly better.} Kg8 {[%emt 0:03:22]} 42. fxe5 {[%emt 0:00:00]} fxe5 {[%emt 0:00:08]} 43. Re7 {[%emt 0:00:00]} Rc8 {[%emt 0:05:25]} 44. Rxe5 {[%emt 0:00:00]} Re8 {[%emt 0:01:03]} 45. Rg5+ {[%emt 0:00:00]} Kf8 {[%emt 0:01:16]} 46. Ke3 {[%emt 0:00:00]} Bc6 {[%emt 0:00:45]} 47. e5 {[%emt 0:00:00]} Re6 {[%emt 0:00:30]} 48. Rf5+ {[%emt 0:00:00]} Ke8 {[%emt 0:02:07]} 49. Rh5 {[%emt 0:00:00]} h6 {[%emt 0:00:30]} 50. Rh4 {[%emt 0:00:00]} Bb5 {[%emt 0:00:48]} 51. Ke4 {[%emt 0:27:18] Weighted Error Value: White=0.04 (flawless) /Black=0.08 (flawless)} 1-0

[Event "Bangabandhu Premier Div League 2022"]
[Site "Dhaka"]
[Date "2022.12.02"]
[Round "3.12"]
[White "Jamal Uddin"]
[Black "Zia, Tahsin Tajwar"]
[Result "1/2-1/2"]
[ECO "A13"]
[WhiteElo "2092"]
[BlackElo "2241"]
[Annotator "TA"]
[PlyCount "112"]
[EventDate "2022.11.30"]
[EventType "team-tourn"]
[EventCountry "BAN"]
[SourceTitle "playchess.com"]
[Source "ChessBase"]
[SourceQuality "1"]
[TimeControl "40/5400+30:1800+30"]

{[%evp 9,112,18,22,8,16,0,0,0,0,0,0,-8,0,-8,-9,-17,0,0,0,0,0,0,0,0,4,0,10,6,15,5,59,64,51,12,12,-3,-3,-4,-5,-8,-13,-21,-10,-21,18,-7,-13,-9,0,0,0,0,0,0,0,0,0,0,26,-71,-71,-71,-71,-71,-70,-71,-30,-58,-50,-50,-50,-58,-58,-58,-58,-58,-58,-58,-58,-58,-58,-58,-58,-58,-58,-58,-58,-58,-58,-58,-58,-58,-58,-58,-48,-50,0,-58,0,-58,-58,-58,-58,-58,-58]} 1. c4 {[%emt 0:00:30]} Nf6 {[%emt 0:01:04]} 2. Nf3 {[%emt 0:00:24]} e6 {[%emt 0:00:47]} 3. g3 {[%emt 0:00:57]} d5 {[%emt 0:00:08]} 4. Bg2 {[%emt 0:00:24]} dxc4 {[%emt 0:00:40]} 5. Qa4+ {[%emt 0:01:01]} Bd7 {[%emt 0:00:11]} 6. Qxc4 {[%emt 0:00:25] A13: English Opening: 1...e6.} c5 {[%emt 0:00:15]} 7. Ne5 {[%emt 0:01:34]} Qc8 {[%emt 0:00:37]} 8. O-O {[%emt 0:00:54] The position is equal.} Nc6 {[%emt 0:00:39] Inhibits d4.} 9. Nxd7 {[%emt 0:01:41]} (9. d4 {seems wilder.} cxd4 10. Bxc6 Bxc6 11. Rd1) 9... Qxd7 {[%emt 0:00:15]} 10. d3 {[%emt 0:01:38]} Be7 {[%emt 0:03:09]} 11. Be3 {[%emt 0:02:04]} Rc8 {[%emt 0:02:09]} 12. Qa4 $1 {[%emt 0:06:52]} (12. Bxc5 $2 {is the wrong capture.} Na5 13. Qd4 Bxc5 $19) 12... O-O {[%emt 0:05:44]} 13. Nc3 {[%emt 0:02:04]} Rfd8 {[%emt 0:06:58]} 14. Rac1 {[%emt 0:02:33]} b6 {[%emt 0:04:05]} 15. Rfd1 {[%emt 0:05:35] [#]} Nd4 $146 {[%emt 1:11:19] [#] Hoping for ...Qxa4.} ({Predecessor:} 15... h6 16. h3 Ne8 17. Nb5 Bf6 18. b3 Nd6 19. Nxd6 Qxd6 20. Bxc6 Qxc6 21. Qg4 Kf8 22. Rc4 Qd5 23. Rdc1 h5 {½-½ (43) Nakamura,H (2814)-Eljanov,P (2717) Baku 2015}) 16. Qa6 {[%emt 1:09:54]} Nc6 {[%emt 0:00:00]} 17. Qa4 {[%emt 0:00:00]} Ne5 {[%emt 0:00:00]} 18. Qxd7 {[%emt 0:00:00]} Rxd7 {[%emt 0:00:00]} 19. h3 {[%emt 0:00:00]} Nd5 {[%emt 0:00:00]} ({Black should play} 19... Nc6 $11) 20. Nxd5 $14 {[%emt 0:00:00]} exd5 {[%emt 0:00:00]} 21. f4 {[%emt 0:00:00]} Nc6 {[%emt 0:00:00]} 22. d4 {[%emt 0:00:00][%cal Rd4c5]} c4 {[%emt 0:00:00]} 23. Bf2 {[%emt 0:00:00]} f5 {[%emt 0:00:00]} 24. g4 {[%emt 0:00:00]} g6 {[%emt 0:00:00]} 25. Bf3 {[%emt 0:00:00]} Kf7 {[%emt 0:00:00]} 26. Kg2 {[%emt 0:00:00]} Bf6 {[%emt 0:00:00]} 27. e3 {[%emt 0:00:00]} b5 {[%emt 0:00:00]} 28. b3 {[%emt 0:00:00]} Ke6 {[%emt 0:00:00]} 29. Be1 {[%emt 0:00:00]} Rb7 {[%emt 0:00:59]} 30. g5 {[%emt 0:00:00]} Bg7 {[%emt 0:02:44]} 31. h4 {[%emt 0:00:00]} Kd6 {[%emt 0:01:19]} 32. h5 {[%emt 0:00:00]} a5 {[%emt 0:01:21]} 33. Bd2 {[%emt 0:00:00]} Nb4 {[%emt 0:02:37]} 34. Bxb4+ {[%emt 0:00:00]} (34. a3 $11 Nd3 35. Rc2) 34... axb4 $17 {[%emt 0:00:00]} 35. Rd2 {[%emt 0:00:00]} Ra7 {[%emt 0:00:00]} 36. Rb2 {[%emt 0:00:00]} Rb8 {[%emt 0:00:21]} (36... c3 {is more complex.} 37. Re2 Rca8 38. Rcc2 Re7) 37. Kf2 {[%emt 0:00:00]} Ra3 {[%emt 0:00:22]} 38. Bd1 {[%emt 0:00:00]} Bf8 {[%emt 0:00:22]} 39. Kf3 {[%emt 0:00:00]} Ke6 {[%emt 0:01:10]} 40. hxg6 {[%emt 0:00:00]} hxg6 {[%emt 0:00:01]} 41. Rh2 {[%emt 0:24:28]} Rba8 {[%emt 0:30:27]} 42. Rcc2 {[%emt 0:00:27]} Bg7 {[%emt 0:00:56]} (42... cxb3 $2 43. axb3 Bd6 44. Rc6 $18) 43. Rce2 {[%emt 0:00:42]} Kf7 {[%emt 0:00:00]} 44. Reg2 {[%emt 0:00:00]} R3a7 {[%emt 0:00:00]} 45. Rb2 {[%emt 0:00:00]} Rb8 {[%emt 0:00:00]} 46. Rbe2 {[%emt 0:00:00]} Re8 {[%emt 0:00:00]} 47. Rb2 {[%emt 0:00:00]} Rae7 {[%emt 0:00:00]} 48. Rbe2 {[%emt 0:00:00]} Kg8 {[%emt 0:00:00]} 49. Rhg2 {[%emt 0:00:00]} Re6 {[%emt 0:00:00]} 50. Rh2 {[%emt 0:00:00]} Bf8 {[%emt 0:00:00]} 51. Rhg2 {[%emt 0:00:00]} Bd6 {[%emt 0:00:00]} 52. Rh2 {[%emt 0:00:00]} Bf8 {[%emt 0:00:00]} (52... Rd8 $15) 53. Rh1 {[%emt 0:00:00]} (53. Rhg2 $1 $11) 53... Bg7 {[%emt 0:00:00]} 54. Rhh2 {[%emt 0:00:00]} Kf7 {[%emt 0:00:00] Black is slightly better.} 55. Rh7 {[%emt 0:00:00]} Re4 {[%emt 0:00:00]} 56. Rhh2 {[%emt 0:00:00]} R4e7 {[%emt 0:00:00] Weighted Error Value: White=0.08 (flawless) /Black=0.08 (flawless)} 1/2-1/2

[Event "Bangabandhu Premier Div League 2022"]
[Site "Dhaka"]
[Date "2022.12.03"]
[Round "4.1"]
[White "Hossain, Enamul"]
[Black "Hrishin, Talukder"]
[Result "1-0"]
[ECO "B33"]
[WhiteElo "2392"]
[BlackElo "1673"]
[Annotator "TA"]
[PlyCount "94"]
[EventDate "2022.12.01"]
[EventCountry "BAN"]
[SourceTitle "playchess.com"]
[Source "ChessBase"]
[SourceQuality "1"]
[TimeControl "40/5400+30:1800+30"]

{[%evp 20,94,30,8,44,24,25,0,20,0,0,0,11,7,25,24,24,25,25,23,23,23,23,23,24,30,35,32,61,55,54,55,56,49,46,46,58,48,72,50,59,59,72,37,37,37,37,17,85,30,30,30,151,112,147,139,2903,2288,2939,2997,4564,3176,1718,1627,3977,4147,5397,1661,5455,4947,5255,571,1591,1415,5945,5406,29988]} 1. e4 {[%emt 0:17:08]} c5 {[%emt 1:31:00]} 2. Nf3 {[%emt 0:00:38][%cal Bg1f3,Bf3d4,Bd4b5,Bb5a3,Ba3c2][%mdl 32]} Nc6 {[%emt 0:00:30]} 3. d4 {[%emt 0:00:43]} cxd4 {[%emt 0:00:00]} 4. Nxd4 {[%emt 1:14:01]} Nf6 {[%emt 0:00:00]} 5. Nc3 {[%emt 0:00:00]} e5 {[%emt 0:01:30]} 6. Ndb5 {[%emt 0:01:00]} d6 {[%emt 0:00:30]} 7. Bg5 {[%emt 0:00:30]} a6 {[%emt 0:00:30]} 8. Na3 {[%emt 0:00:30]} b5 {[%emt 0:00:30]} 9. Nd5 {[%emt 0:00:30]} Be7 {[%emt 0:00:30]} 10. Bxf6 {[%emt 0:00:30]} Bxf6 {[%emt 0:00:00]} 11. c4 {[%emt 0:00:30]} Bg5 {[%emt 0:01:00] B33: Sicilian: Pelikan and Sveshnikov Variations.} (11... b4 $5 {[%cal Rb4a3]} 12. Nc2 a5 $11) 12. b4 {[%emt 0:00:30] Inhibits Qa5.} Be6 {[%emt 0:00:30] Against h4} 13. Nc2 {[%emt 0:00:30] [#] Pair of Knights!} Rb8 $146 {[%emt 0:00:30] The position is equal.} ({Predecessor:} 13... Nd4 14. Nxd4 exd4 15. Bd3 Bxd5 16. cxd5 O-O 17. O-O Rc8 18. a4 Qb6 19. axb5 axb5 {0-1 (61) Somborski,N (2347)-Vasovski,N (2279) Subotica 2012}) 14. Be2 {[%emt 0:00:30]} O-O {[%emt 0:00:00]} 15. O-O bxc4 {[%emt 0:01:00]} 16. Bxc4 {[%emt 0:01:00]} Bxd5 {[%emt 0:00:00]} (16... Qc8 $5 {[%cal Rc6b4]}) 17. Qxd5 {[%emt 0:00:30]} Nxb4 {[%emt 0:00:00]} 18. Nxb4 {[%emt 0:00:00]} Rxb4 {[%emt 0:01:30]} 19. Rab1 {[%emt 0:01:00]} Qb6 {[%emt 0:00:00]} 20. Rxb4 {[%emt 0:00:00]} Qxb4 {[%emt 0:00:00]} 21. Bxa6 {[%emt 0:00:00]} Bd8 {[%emt 0:01:30]} 22. Bc4 {[%emt 0:01:30]} Bb6 {[%emt 0:00:00]} 23. g3 {[%emt 0:00:30]} Qc5 {[%emt 0:00:00]} 24. Qxc5 {[%emt 0:00:00]} Bxc5 $14 {[%emt 0:00:00][%mdl 4096] Endgame KRB-KRB} 25. Rb1 {[%emt 0:01:00] Against Rb8} g5 {[%emt 0:02:00]} 26. Rb7 {[%emt 0:00:00]} Kg7 {[%emt 0:00:30]} 27. g4 {[%emt 0:01:00]} Kg6 {[%emt 0:00:30]} 28. a4 {[%emt 0:00:30]} h5 {[%emt 0:00:30]} 29. h3 {[%emt 0:00:30] White is more active.} hxg4 {[%emt 0:00:00]} 30. hxg4 {[%emt 0:00:30]} Bd4 {[%emt 0:01:00]} 31. a5 {[%emt 0:00:30]} Rc8 {[%emt 0:00:00]} 32. Bxf7+ Kf6 {[%emt 0:01:00]} 33. Bd5 {[%emt 0:01:00]} Rc2 {[%emt 0:00:30] [#]} (33... Rc1+ $11 {remains equal.} 34. Kg2 Ra1) 34. a6 {[%emt 0:00:30]} (34. Rf7+ $1 $16 Kg6 35. Rf8) 34... Bxf2+ $11 {[%emt 0:00:30]} 35. Kf1 {[%emt 0:00:30] Threatening mate with Rf7+.} Bd4 {[%emt 0:00:30]} (35... Bc5 $1 $11 {keeps the balance.}) 36. Rf7+ $16 {[%emt 0:00:30]} ({And not} 36. a7 Rc1+ 37. Kg2 Rg1+ 38. Kh2 Ra1 $11) 36... Kg6 {[%emt 0:00:00]} 37. Rd7 {[%cal Oa6a7]} ({Don't play} 37. a7 $6 Rc1+ 38. Kg2 Rg1+ 39. Kf3 Rf1+ 40. Kg3 Rg1+ 41. Kh3 Rh1+ 42. Kg3 Rg1+ 43. Kh2 Ra1 $11) 37... Bc5 {[%emt 0:01:00][%mdl 8192] This move loses the game for Black.} (37... Rc1+ $16 38. Ke2 Ra1) 38. a7 $18 {[%emt 0:01:00] White is clearly winning.} Rf2+ {[%emt 0:00:30]} 39. Ke1 {[%emt 0:00:30]} Bxa7 {[%emt 0:00:30]} 40. Rxa7 {[%emt 0:00:30] KRB-KR} Rf4 {[%emt 0:00:00]} 41. Rd7 {[%emt 0:03:28]} Rxg4 42. Rxd6+ Kg7 {[%emt 0:31:30]} 43. Re6 {[%emt 0:28:02]} (43. Kf2 $142 Kh7 44. Re6) 43... Rg2 {[%emt 0:00:30]} 44. Rxe5 {[%emt 0:00:30]} Kh6 {[%emt 0:00:30]} 45. Kf1 {[%emt 0:00:30]} Rb2 {[%emt 0:00:30]} 46. Rf5 {[%emt 0:00:30] [#] Hoping for e5.} Rb5 {[%emt 0:00:30] Against e5} 47. Kg2 {[%emt 0:00:00] Black must now prevent Kg3.} Kh5 {[%emt 0:00:30] Weighted Error Value: White=0.36/Black=0.26 (precise)} 1-0

[Event "Bangabandhu Premier Div League 2022"]
[Site "Dhaka"]
[Date "2022.12.03"]
[Round "4.2"]
[White "Iniyan, P."]
[Black "Koustav Chatterjee"]
[Result "1/2-1/2"]
[ECO "E15"]
[WhiteElo "2534"]
[BlackElo "2496"]
[Annotator "TA"]
[PlyCount "38"]
[EventDate "2022.11.30"]
[EventType "team-tourn"]
[EventCountry "BAN"]
[SourceTitle "playchess.com"]
[Source "ChessBase"]
[SourceQuality "1"]
[TimeControl "40/5400+30:1800+30"]

{[%evp 19,38,5,14,0,17,16,18,20,23,0,0,0,0,0,0,0,0,0,0,0,0]} 1. d4 {[%emt 0:00:17] Sagar,Shah/CB Website} Nf6 {[%emt 0:07:50]} 2. c4 {[%emt 0:00:15]} e6 {[%emt 0:01:08]} 3. Nf3 {[%emt 0:00:09]} b6 {[%emt 0:00:34]} 4. g3 {[%emt 0:00:24]} Ba6 {[%emt 0:00:17]} 5. b3 {[%emt 0:00:12]} Bb4+ {[%emt 0:00:05]} 6. Bd2 {[%emt 0:00:18]} Be7 {[%emt 0:00:08]} 7. Nc3 {[%emt 0:01:29]} d5 {[%emt 0:00:09]} 8. cxd5 {[%emt 0:00:18]} exd5 {[%emt 0:00:05]} 9. Bg2 {[%emt 0:00:26]} O-O {[%emt 0:00:08]} 10. O-O {[%emt 0:00:19]} Re8 {[%emt 0:00:24]} 11. a3 {[%emt 0:06:30] 11.Rc1 is a critical line. E15: Queen's Indian: 4 g3 sidelines, 4 g3 Ba6 and 4 g3 Bb7 early deviations.} c5 {[%emt 0:29:02]} 12. dxc5 {[%emt 0:10:01]} bxc5 {[%emt 0:00:46]} 13. Ne5 {[%emt 0:01:18][%cal Oc3d5]} Bb7 {[%emt 0:06:35]} 14. Bf4 {[%emt 0:10:13] [#]} Bf8 $146 {[%emt 0:03:46] The position is equal.} ({Predecessor:} 14... Nbd7 15. Nc4 Nb6 16. Na5 Ba6 17. b4 cxb4 18. axb4 Bxb4 19. Nc6 Bxc3 20. Nxd8 Bxe2 {½-½ (36) Caruana,F (2794)-Karjakin,S (2760) Moscow 2016 CBM 172 [Sagar,Shah/CB Website]}) 15. Nc4 {[%emt 0:05:37]} Bc6 $1 {[%emt 0:01:49]} 16. Ne5 {[%emt 0:03:31]} Bb7 {[%emt 0:00:22]} 17. Nc4 {[%emt 0:34:52]} Bc6 $1 {[%emt 0:00:48]} 18. Ne5 {[%emt 0:00:51]} Bb7 {[%emt 0:00:05]} 19. Nc4 {[%emt 0:08:55]} Bc6 $1 {[%emt 0:00:02] Not much happened in this game.   Weighted Error Value: White=0.06 (flawless) /Black=0.01 (flawless)} 1/2-1/2